bitfinex-derivatives/quotes_ETHF0:USTF0_20240905
["timestamp","ask_amount","ask_price","bid_price","bid_amount"]
[1725519729960,0.57199094,2401.6,2401.3,0.29152]
[1725519730267,0.57199094,2401.6,2401.2,6.8398]
[1725519730268,0.36475261,2401.6,2401.2,6.8398]
[1725519730453,0.36475261,2401.6,2401.3,0.29151]
[1725519730861,0.20845312,2401.5,2401.2,6.8398]
[1725519731048,0.49995312,2401.5,2401.2,6.4687]
[1725519731366,0.20845312,2401.5,2401.2,6.4687]
[1725519731965,0.20845312,2401.5,2401.2,3.5887]
[1725519732259,0.20845312,2401.5,2401.2,0.3809]
[1725519732559,0.36475261,2401.6,2401.2,0.3809]
[1725519732762,0.65623261,2401.6,2401.2,0.3809]
[1725519732960,0.50097392,2401.5,2401.2,0.3809]
[1725519733156,3.70877392,2401.5,2401.2,0.3809]
[1725519734154,3.41727392,2401.5,2401.2,0.3809]
[1725519734360,3.2078,2401.5,2401.2,0.3809]
[1725519734858,0.57268491,2401.6,2401.2,0.3809]
[1725519735064,0.36475261,2401.6,2401.2,0.3809]
[1725519735261,0.36475261,2401.6,2401.2,3.2609]
[1725519735760,0.36475261,2401.6,2401.2,3.55243]
[1725519735956,0.36475261,2401.6,2401.4,2.88]
[1725519736160,0.36475261,2401.6,2401.4,3.1715]
[1725519736461,0.00625261,2401.6,2401.5,0.29149]
[1725519737055,0.00625261,2401.6,2401.4,3.1715]
[1725519737257,0.00625261,2401.6,2401.5,0.29149]
[1725519737665,0.00625261,2401.6,2401.5,7.66329]
[1725519739471,1.1431,2402.2,2401.9,0.29144]
[1725519739472,0.368,2402.2,2401.9,0.29144]
[1725519739669,0.368,2402.2,2402.1,2.88]
[1725519740066,0.368,2402.2,2402.0,0.3873]
[1725519740067,0.65941,2402.2,2402.0,3.2673]
[1725519740268,0.368,2402.2,2402.0,3.2673]
[1725519740569,0.368,2402.2,2402.1,0.29142]
[1725519740772,0.368,2402.2,2402.0,2.88]
[1725519740963,0.29143,2402.1,2401.9,3.21405261]
[1725519741159,0.368,2402.2,2402.0,2.88]
[1725519741674,0.368,2402.2,2401.9,3.21405261]
[1725519741971,0.65942,2402.2,2401.9,3.21405261]
[1725519742572,0.368,2402.2,2401.9,3.21405261]
[1725519742865,0.65941,2402.2,2401.9,3.21405261]
[1725519743862,0.368,2402.2,2401.9,3.21405261]
[1725519744068,0.65942,2402.2,2401.9,3.21405261]
[1725519744662,0.368,2402.2,2401.9,3.21405261]
[1725519744871,0.368,2402.2,2402.0,3.2733]
[1725519746265,0.368,2402.2,2402.0,3.56473]
[1725519746464,0.368,2402.2,2402.0,3.2733]
[1725519747866,0.368,2402.2,2401.9,0.00625261]
[1725519748067,0.65683,2402.1,2401.9,0.00625261]
[1725519750472,0.65682,2402.1,2401.9,0.00625261]
[1725519750680,0.29143,2402.0,2401.9,0.00625261]
[1725519750874,3.2078,2402.0,2401.9,0.00625261]
[1725519751074,3.49923,2402.0,2401.9,0.00625261]
[1725519751583,7.66243,2402.0,2401.9,0.00625261]
[1725519751780,0.29147,2401.7,2401.1,3.17153]
[1725519752078,13.371,2402.0,2401.2,0.3856]
[1725519752079,3.5868,2401.6,2401.2,0.3856]
[1725519752381,0.29149,2401.5,2401.1,2.88]
[1725519752676,0.29149,2401.5,2401.1,2.88625261]
[1725519752677,0.65311,2401.4,2401.1,2.88625261]
[1725519752883,0.3616,2401.4,2401.1,2.88625261]
[1725519754074,0.00625261,2401.5,2401.3,2.88]
[1725519754278,0.00625261,2401.5,2401.4,3.258]
[1725519754476,0.00625261,2401.5,2401.4,3.54951]
[1725519756566,0.00625261,2401.5,2401.4,7.71351]
[1725519757970,0.00625261,2401.5,2401.4,13.71351]
[1725519758175,0.3764,2402.1,2401.4,13.422]
[1725519758372,0.7418,2402.1,2401.8,6.37925]
[1725519758577,0.7418,2402.1,2401.9,0.3656]
[1725519759186,0.4918,2402.1,2401.9,0.3656]
[1725519760686,0.4918,2402.1,2401.8,3.2078]
[1725519760887,0.78323,2402.1,2401.7,2.88]
[1725519761080,0.78323,2402.1,2401.7,3.2689]
[1725519761282,0.4918,2402.1,2401.4,3.2078]
[1725519761478,3.2078,2401.8,2401.4,3.2078]
[1725519761690,0.3825,2401.7,2401.3,0.3889]
[1725519761888,0.3614,2401.6,2401.3,0.3889]
[1725519762390,0.7429,2401.6,2401.3,0.3889]
[1725519763588,0.7429,2401.6,2401.3,3.2689]
[1725519763774,0.7429,2401.6,2401.4,0.29151]
[1725519764186,0.3614,2401.6,2401.5,0.29149]
[1725519764389,0.66943,2402.1,2401.6,0.29148]
[1725519764579,0.3614,2401.9,2401.7,3.2478]
[1725519765290,0.3614,2401.9,2401.8,0.29146]
[1725519765583,0.3614,2401.9,2401.7,3.2478]
[1725519765784,0.3614,2401.9,2401.7,3.53927]
[1725519766489,3.2078,2402.5,2401.9,0.29144]
[1725519766692,0.2914,2402.3,2401.9,2.88]
[1725519766891,0.2914,2402.3,2401.9,3.17145]
[1725519767187,0.67429,2402.4,2401.9,3.17145]
[1725519767380,0.42429,2402.4,2401.9,3.17145]
[1725519767991,0.1329,2402.4,2402.0,0.29143]
[1725519768691,0.1329,2402.4,2402.1,0.3887]
[1725519769694,0.42429,2402.4,2402.1,0.3887]
[1725519769885,0.2914,2402.3,2401.9,2.88]
[1725519770086,0.2914,2402.3,2401.9,3.246]
[1725519771202,0.2914,2402.3,2401.9,3.53744]
[1725519771383,0.2914,2402.3,2401.9,0.65744]
[1725519772088,0.42429,2402.4,2401.9,0.65744]
[1725519772989,3.2078,2402.3,2401.9,0.65744]
[1725519773188,3.4992,2402.3,2401.9,0.366]
[1725519774294,3.2078,2402.3,2402.1,0.29142]
[1725519774493,3.2078,2402.3,2402.2,0.3609]
[1725519775085,3.2078,2402.3,2402.2,0.65231]
[1725519775288,0.3671,2402.5,2402.2,0.3609]
[1725519775592,0.00351034,2402.6,2402.4,3.17138]
[1725519775800,0.00351034,2402.6,2402.5,0.3837]
[1725519776196,0.00351034,2402.6,2402.5,0.67507]
[1725519778102,0.00351034,2402.6,2402.5,0.3837]
[1725519779194,0.00351034,2402.6,2402.4,2.88]
[1725519779392,0.67967034,2402.6,2402.4,2.88]
[1725519779598,0.67967034,2402.6,2402.3,0.00625261]
[1725519780306,0.3902,2402.5,2402.3,0.00625261]
[1725519780695,4.5526,2402.5,2402.3,0.00625261]
[1725519781096,4.84398,2402.5,2402.3,0.00625261]
[1725519781298,0.68158,2402.5,2402.3,0.00625261]
[1725519782206,0.29138,2402.4,2402.3,0.00625261]
[1725519782599,0.68158,2402.5,2402.3,0.00625261]
[1725519782997,0.29138,2402.4,2402.3,0.00625261]
[1725519784107,4.45378,2402.4,2402.3,0.00625261]
[1725519784795,0.29143,2402.1,2401.8,6.4519]
[1725519784999,0.67484,2402.0,2401.8,3.2441]
[1725519785206,0.3596,2401.9,2401.8,3.2441]
[1725519786408,0.3596,2401.9,2401.8,3.53556]
[1725519786605,0.3596,2401.9,2401.8,3.2441]
[1725519787202,0.3596,2401.9,2401.8,3.53556]
[1725519787510,0.3596,2401.9,2401.8,3.2441]
[1725519787911,0.3596,2401.9,2401.8,2.88]
[1725519788513,0.29147,2401.7,2401.6,0.00625261]
[1725519790312,4.45547,2401.7,2401.6,0.00625261]
[1725519790506,10.45547,2401.7,2401.6,0.00625261]
[1725519792117,4.45547,2401.7,2401.6,0.00625261]
[1725519793611,4.164,2401.7,2401.6,0.00625261]
[1725519794514,4.45547,2401.7,2401.6,0.00625261]
[1725519794814,4.164,2401.7,2401.6,0.00625261]
[1725519795120,3.2078,2401.8,2401.6,0.00625261]
[1725519795320,4.164,2401.7,2401.6,0.00625261]
[1725519795519,7.77268,2401.7,2400.9,2.88]
[1725519795720,0.29151,2401.4,2400.9,2.88]
[1725519795920,1.04802,2401.3,2400.9,2.88]
[1725519796311,0.391,2401.2,2400.9,2.88]
[1725519796622,0.391,2401.2,2400.8,4.26138]
[1725519796623,3.5988,2401.2,2400.8,3.60095261]
[1725519796817,3.5988,2401.2,2400.8,3.21405261]
[1725519797127,0.29156,2401.0,2400.8,0.00625261]
[1725519797322,3.5988,2401.2,2400.8,0.00625261]
[1725519797323,0.29157,2400.9,2400.8,0.00625261]
[1725519797525,0.29156,2401.0,2400.8,0.00625261]
[1725519797724,0.29157,2400.9,2400.8,0.00625261]
[1725519798233,16.54417,2400.9,2400.8,0.00625261]
[1725519798422,16.54417,2400.9,2399.9,6.8264]
[1725519798423,0.29162,2400.5,2399.9,6.8264]
[1725519799128,0.29162,2400.5,2399.9,3.2078]
[1725519799129,0.29166,2400.2,2399.9,3.2078]
[1725519799326,0.20494399,2400.5,2399.8,0.00625261]
[1725519799327,6.0878,2400.3,2399.8,0.00625261]
[1725519799523,1.06356,2400.2,2399.8,0.00625261]
[1725519799827,0.29168,2400.0,2399.8,0.00625261]
[1725519800324,2.88,2400.1,2399.8,0.00625261]
[1725519800325,3.17167,2400.1,2399.8,0.00625261]
[1725519802622,0.3887,2400.2,2399.8,2.88625261]
[1725519803128,3.5965,2400.2,2399.8,0.00625261]
[1725519803319,3.2498,2400.6,2399.9,0.29168]
[1725519803519,3.2498,2400.6,2400.0,0.65508]
[1725519803718,3.5414,2400.6,2400.0,0.3634]
[1725519803927,3.75140716,2400.6,2400.0,0.3634]
[1725519804123,0.3692,2400.7,2400.1,0.29166]
[1725519804328,0.3692,2400.7,2400.2,0.29165]
[1725519804522,0.3692,2400.7,2400.2,2.88]
[1725519804722,0.3692,2400.7,2400.2,43.97165]
[1725519804923,0.3692,2400.7,2400.4,0.29163]
[1725519805623,3.2078,2400.8,2400.4,2.88]
[1725519806133,3.2078,2400.8,2400.5,0.29161]
[1725519806329,4.111,2401.0,2400.7,3.17158]
[1725519806523,4.111,2401.0,2400.7,6.0878]
[1725519806719,4.111,2401.0,2400.6,3.1716]
[1725519806928,4.111,2401.0,2400.6,3.5597]
[1725519807121,4.111,2401.0,2400.7,0.29159]
[1725519807321,4.111,2401.0,2400.6,3.2681]
[1725519807629,4.111,2401.0,2400.8,0.29158]
[1725519808132,4.111,2401.0,2400.7,0.29158]
[1725519808331,0.00625261,2401.1,2400.8,2.88]
[1725519808729,0.00625261,2401.1,2400.9,0.29156]
[1725519808933,0.00625261,2401.1,2401.0,2.88]
[1725519809125,0.00625261,2401.1,2401.0,3.17155]
[1725519809634,0.00625261,2401.1,2401.0,13.33635]
[1725519810339,0.00625261,2401.1,2401.0,7.33635]
[1725519810724,0.00625261,2401.1,2401.0,7.0448]
[1725519811329,0.00625261,2401.1,2401.0,2.88]
[1725519812337,0.00625261,2401.1,2401.0,3.17155]
[1725519812544,0.00625261,2401.1,2401.0,7.33635]
[1725519812833,0.00625261,2401.1,2401.0,10.54415]
[1725519816839,0.00625261,2401.1,2400.6,0.3881]
[1725519816840,0.00625261,2401.1,2400.9,0.29156]
[1725519817630,0.00625261,2401.1,2400.9,3.17156]
[1725519818833,0.00625261,2401.1,2401.0,0.29155]
[1725519819035,0.00625261,2401.1,2401.0,4.45635]
[1725519819239,0.00625261,2401.1,2401.0,10.54415]
[1725519819642,7.61028,2401.7,2401.3,0.29151]
[1725519819840,3.49928,2401.7,2401.3,3.17151]
[1725519820639,3.50553261,2401.7,2401.3,3.17776261]
[1725519821434,3.21405261,2401.7,2401.4,0.29151]
[1725519824536,0.00625261,2401.7,2401.3,6.09405261]
[1725519824736,0.00625261,2401.7,2401.4,0.2915]
[1725519824931,0.00625261,2401.7,2401.6,0.29148]
[1725519825737,0.00625261,2401.7,2401.6,0.65598]
[1725519825940,3.5887,2402.2,2401.8,0.29146]
[1725519826138,3.947,2402.2,2401.8,2.88]
[1725519826745,0.3583,2402.2,2402.0,0.29143]
[1725519827747,0.3583,2402.2,2401.9,3.49924]
[1725519828541,0.3583,2402.2,2402.0,0.29143]
[1725519829853,0.3583,2402.2,2401.9,3.49924]
[1725519830552,0.3583,2402.2,2402.0,0.29143]
[1725519830748,0.3583,2402.2,2401.9,3.49924]
[1725519831249,0.3583,2402.2,2402.0,0.29143]
[1725519831445,0.3583,2402.2,2401.9,3.2078]
[1725519831753,0.3583,2402.2,2401.9,0.29144]
[1725519832341,0.3583,2402.2,2402.0,0.29143]
[1725519832549,0.3583,2402.2,2401.7,3.2625]
[1725519832749,0.3583,2402.2,2401.9,0.29144]
[1725519833254,0.3583,2402.2,2401.7,2.88]
[1725519833452,0.64972,2402.2,2401.7,0.29146]
[1725519833942,0.3583,2402.2,2401.8,0.29146]
[1725519834143,0.3583,2402.2,2401.9,0.29144]
[1725519834645,0.3583,2402.2,2401.8,0.29145]
[1725519835247,0.3583,2402.2,2401.9,0.29144]
[1725519835446,0.3583,2402.2,2401.8,0.29145]
[1725519836648,0.3583,2402.2,2401.6,47.2523]
[1725519836850,0.3583,2402.2,2401.6,3.5723]
[1725519837059,0.64972,2402.2,2401.6,3.86377]
[1725519837350,0.64972,2402.2,2401.7,0.29147]
[1725519837749,0.64972,2402.2,2401.6,3.86377]
[1725519837750,0.29142,2402.1,2401.6,3.86377]
[1725519837944,2.88,2402.1,2401.3,6.09405261]
[1725519838144,0.66884,2402.0,2401.4,0.29151]
[1725519838447,0.3923,2401.9,2401.3,6.09405261]
[1725519838647,0.3923,2401.9,2401.4,0.2915]
[1725519838847,0.3923,2401.9,2401.6,0.29148]
[1725519839042,0.3774,2402.0,2401.8,0.29146]
[1725519839842,0.3923,2402.1,2401.6,6.0878]
[1725519840051,0.3583,2402.2,2402.0,0.29143]
[1725519840456,0.3583,2402.2,2402.0,0.66613]
[1725519840849,0.3583,2402.2,2402.1,0.29142]
[1725519843653,0.3583,2402.2,2401.6,3.577]
[1725519843855,0.3583,2402.2,2401.7,0.3682]
[1725519844050,0.64971,2402.2,2401.8,0.29146]
[1725519844245,0.3583,2402.2,2401.7,0.3682]
[1725519844450,0.29143,2402.1,2401.7,0.65966]
[1725519844954,0.3746,2402.0,2401.7,0.65966]
[1725519847763,0.3746,2402.0,2401.8,0.29146]
[1725519848562,0.3583,2402.2,2402.0,0.29142]
[1725519848751,0.3583,2402.2,2402.1,0.29142]
[1725519849255,0.3583,2402.2,2402.1,0.67622]
[1725519853957,0.00625261,2402.3,2402.2,0.29141]
[1725519854269,0.00625261,2402.3,2401.8,0.29145]
[1725519854270,4.45461,2402.2,2401.8,0.29145]
[1725519854460,2.88625261,2402.3,2401.8,0.29145]
[1725519854656,3.17765261,2402.3,2401.9,0.29144]
[1725519854962,2.88625261,2402.3,2401.9,0.29144]
[1725519855174,0.29765261,2402.3,2401.8,0.29145]
[1725519855464,0.29765261,2402.3,2401.9,0.29144]
[1725519855465,0.00625261,2402.3,2401.9,0.29144]
[1725519857270,0.29765261,2402.3,2401.9,0.29144]
[1725519857573,0.29765261,2402.3,2401.8,0.29145]
[1725519858455,0.29765261,2402.3,2401.9,0.29144]
[1725519858764,0.29765261,2402.3,2401.8,0.29145]
[1725519859168,0.29142,2402.2,2401.7,0.65956]
[1725519859662,3.17765261,2402.3,2401.8,0.29145]
[1725519860971,0.00625261,2402.3,2402.0,0.29143]
[1725519861178,0.00625261,2402.3,2401.9,0.29144]
[1725519861359,0.00625261,2402.3,2402.0,0.29143]
[1725519863068,0.00625261,2402.3,2401.8,2.88]
[1725519863069,0.00625261,2402.3,2401.9,3.2078]
[1725519863270,0.00625261,2402.3,2402.2,0.29141]
[1725519865566,0.00625261,2402.3,2402.1,0.29141]
[1725519867072,0.00625261,2402.3,2402.2,0.3723]
[1725519867473,0.00625261,2402.3,2402.2,0.66371]
[1725519868572,0.00625261,2402.3,2402.2,3.87151]
[1725519868968,0.00625261,2402.3,2402.2,4.43270514]
[1725519869169,0.00625261,2402.3,2402.2,3.87151]
[1725519869373,0.00625261,2402.3,2402.2,4.43270523]
[1725519869575,0.00625261,2402.3,2402.2,8.59510523]
[1725519871673,0.00625261,2402.3,2402.2,4.43270523]
[1725519874569,0.00625261,2402.3,2402.2,4.43272438]
[1725519876176,0.00625261,2402.3,2402.2,3.2078]
[1725519876374,0.39155261,2402.3,2402.2,3.2078]
[1725519879280,0.39155261,2402.3,2401.7,4.59030328]
[1725519879281,0.29142,2402.2,2401.7,4.59030328]
[1725519879576,0.29142,2402.2,2401.7,4.97240328]
[1725519880475,0.29142,2402.2,2401.8,0.56127704]
[1725519880684,0.29142,2402.2,2401.7,4.97240328]
[1725519880983,0.29142,2402.2,2401.8,0.56127415]
[1725519881276,0.29142,2402.1,2401.7,4.97240328]
[1725519881579,0.3831,2402.0,2401.7,4.68094328]
[1725519881778,0.7507,2402.0,2401.7,4.68094328]
[1725519882379,0.7507,2402.0,2401.7,4.97241328]
[1725519882780,0.7507,2402.0,2401.8,0.56127009]
[1725519882980,0.7507,2402.0,2401.7,4.97241328]
[1725519883181,0.7507,2402.0,2401.8,0.56127306]
[1725519883381,0.7507,2402.0,2401.7,3.5899]
[1725519883583,0.7507,2402.0,2401.8,0.56127386]
[1725519883880,0.7507,2402.0,2401.7,3.5899]
[1725519884673,0.7507,2402.0,2401.8,0.56128013]
[1725519884881,0.7507,2402.0,2401.7,0.3821]
[1725519886286,0.7507,2402.0,2401.7,0.67357]
[1725519886585,0.7507,2402.0,2401.7,0.3821]
[1725519889086,0.7507,2402.0,2401.8,0.85272312]
[1725519889087,0.3831,2402.0,2401.8,0.85272312]
[1725519889296,0.3831,2402.0,2401.9,0.56127312]
[1725519889480,0.3831,2402.0,2401.9,3.76904376]
[1725519889682,0.3831,2402.0,2401.9,3.2078]
[1725519890386,0.3831,2402.0,2401.8,0.29145]
[1725519890977,0.3831,2402.0,2401.7,0.67356]
[1725519891187,0.3831,2402.0,2401.8,0.56126387]
[1725519891388,0.3831,2402.0,2401.8,0.29145]
[1725519891986,0.39155261,2402.3,2401.9,3.76904899]
[1725519892282,0.00625261,2402.3,2402.2,3.49921]
[1725519892893,0.00625261,2402.3,2402.2,4.06039375]
[1725519895195,0.00625261,2402.3,2402.2,11.10279375]
[1725519895386,0.00351034,2402.6,2402.5,0.29137]
[1725519896096,0.00351034,2402.6,2402.5,4.43701426]
[1725519896393,0.00351034,2402.6,2402.5,4.43701201]
[1725519898697,0.00351034,2402.6,2402.5,4.43699514]
[1725519898915,0.00351034,2402.6,2402.5,3.87587]
[1725519899088,0.00351034,2402.6,2402.5,4.1456266]
[1725519899394,0.00351034,2402.6,2402.5,0.3767]
[1725519900783,0.29487034,2402.6,2402.5,0.3767]
[1725519900989,0.00351034,2402.6,2402.1,0.3907]
[1725519901183,0.757,2402.5,2402.2,0.3665]
[1725519901399,0.3639,2402.4,2402.2,0.3665]
[1725519901696,0.3639,2402.4,2402.2,3.86571]
[1725519901999,0.3639,2402.4,2402.2,6.4543]
[1725519902399,0.3639,2402.4,2402.2,6.74571]
[1725519902792,0.3639,2402.4,2402.2,6.4543]
[1725519903497,0.3639,2402.4,2402.2,0.3665]
[1725519903697,0.7458,2402.4,2402.2,0.3665]
[1725519904093,0.00351034,2402.6,2402.2,3.2465]
[1725519904293,0.00351034,2402.6,2402.2,6.4543]
[1725519904505,0.00351034,2402.6,2402.2,6.7457]
[1725519905099,0.00351034,2402.6,2402.2,6.4543]
[1725519905300,0.37801034,2402.6,2402.2,6.4543]
[1725519905495,0.3756,2402.5,2402.2,6.74571]
[1725519905993,0.3756,2402.5,2402.3,0.3798]
[1725519907691,0.3756,2402.5,2402.3,0.6712]
[1725519907893,0.00351034,2402.6,2402.4,0.29138]
[1725519908102,0.00351034,2402.6,2402.4,0.66988]
[1725519908498,0.00351034,2402.6,2402.5,3.2078]
[1725519909697,0.00351034,2402.6,2402.5,3.49917]
[1725519909902,0.00351034,2402.6,2402.5,7.66157]
[1725519910994,0.00351034,2402.6,2402.5,8.22268587]
[1725519911193,0.00351034,2402.6,2402.5,7.66157]
[1725519915003,0.00351034,2402.6,2402.5,8.22268715]
[1725519916102,0.00351034,2402.6,2402.5,9.42268715]
[1725519916313,0.00351034,2402.6,2402.5,8.86157]
[1725519917003,0.3644,2403.2,2402.5,15.85975351]
[1725519917313,0.3644,2403.2,2403.0,1.49131]
[1725519917501,0.3644,2403.2,2402.9,1.2]
[1725519917702,0.3644,2403.2,2402.7,40.8]
[1725519917703,1.5644,2403.2,2402.7,42.0]
[1725519918004,0.29132,2403.0,2402.6,0.65960261]
[1725519918206,0.29135,2402.7,2402.6,0.00625261]
[1725519919004,1.04575,2402.7,2402.6,0.00625261]
[1725519920207,0.3644,2402.7,2402.6,0.00625261]
[1725519920415,0.3644,2402.7,2402.6,3.17761261]
[1725519921115,0.3644,2402.7,2402.6,0.00625261]
[1725519922113,0.7488,2402.7,2402.6,0.00625261]
[1725519924614,1.04015,2402.7,2402.6,0.00625261]
[1725519924822,17.29035,2402.7,2402.6,0.00625261]
[1725519926414,0.00625261,2402.6,2402.1,3.2078]
[1725519926608,0.00625261,2402.6,2401.7,2.88]
[1725519926609,2.88,2402.4,2401.7,2.88]
[1725519926910,0.6754,2402.3,2401.9,0.29144]
[1725519927116,0.3882,2402.2,2401.9,0.29144]
[1725519928110,0.3882,2402.2,2402.0,0.29143]
[1725519928713,0.3882,2402.2,2401.9,0.29144]
[1725519928914,0.3882,2402.2,2402.0,0.29143]
[1725519929114,0.384,2402.3,2401.8,0.00625261]
[1725519929321,0.389,2402.5,2402.2,0.2914]
[1725519929521,0.7691,2402.5,2402.2,0.2914]
[1725519929716,0.7691,2402.5,2402.3,0.2914]
[1725519929911,1.1306,2402.5,2402.4,0.29138]
[1725519930313,0.3615,2402.5,2402.4,0.29138]
[1725519931010,0.00625261,2402.6,2402.5,0.29137]
[1725519932717,0.00625261,2402.6,2402.5,7.33377]
[1725519932921,0.3747,2403.0,2402.5,16.2502]
[1725519933122,0.73,2403.0,2402.5,6.0878]
[1725519933417,0.73,2403.0,2402.8,0.29133]
[1725519934329,0.73,2403.0,2402.7,0.29134]
[1725519934623,3.9378,2403.0,2402.5,0.29137]
[1725519934936,0.29133,2402.9,2402.5,0.29137]
[1725519935228,1.02132,2403.0,2402.6,0.29136]
[1725519935528,0.73,2403.0,2402.8,0.29133]
[1725519935917,0.73,2403.0,2402.9,0.29132]
[1725519936725,0.73,2403.0,2402.8,0.29133]
[1725519937126,0.73,2403.0,2402.9,0.29132]
[1725519938631,0.73,2403.0,2402.8,0.29133]
[1725519939127,0.3747,2403.0,2402.9,0.29132]
[1725519942135,0.3747,2403.0,2402.8,0.29133]
[1725519942333,0.374,2402.9,2402.8,0.29133]
[1725519943238,0.3747,2403.0,2402.9,0.29132]
[1725519944138,0.3678,2403.2,2403.1,0.2913]
[1725519944338,4.111,2403.4,2403.3,0.29128]
[1725519944538,0.3837,2403.4,2403.2,0.29128]
[1725519944737,0.3837,2403.4,2403.1,0.00625261]
[1725519944925,0.29128,2403.3,2403.1,0.00625261]
[1725519945132,0.3837,2403.4,2403.1,0.00625261]
[1725519945334,0.3837,2403.4,2403.2,0.29128]
[1725519945835,0.3837,2403.4,2403.3,0.3876]
[1725519947847,4.5445,2403.4,2403.1,0.29755261]
[1725519948145,0.3837,2403.4,2403.1,0.29755261]
[1725519948353,0.3837,2403.4,2403.2,0.29129]
[1725519949239,4.111,2403.8,2403.4,0.29125]
[1725519949441,0.3904,2403.7,2403.5,3.2624]
[1725519949642,0.3904,2403.7,2403.5,0.3824]
[1725519949843,0.3904,2403.7,2403.2,0.29128]
[1725519949844,4.5512,2403.7,2403.2,0.29128]
[1725519950058,0.3804,2403.6,2403.2,0.67368]
[1725519950354,0.3909,2403.5,2403.3,0.29127]
[1725519950847,0.3909,2403.5,2403.4,0.29126]
[1725519951152,0.3804,2403.6,2403.3,3.17127]
[1725519951644,0.3804,2403.6,2403.4,0.29126]
[1725519951953,0.3804,2403.6,2403.3,3.17127]
[1725519952641,0.67165,2403.6,2403.3,2.88]
[1725519952841,0.3804,2403.6,2403.2,0.3824]
[1725519953038,0.29125,2403.5,2403.2,0.3824]
[1725519953449,0.3804,2403.6,2403.2,0.3824]
[1725519953945,0.29127,2403.4,2403.2,0.3824]
[1725519954151,0.3907,2403.3,2403.2,0.3824]
[1725519955749,3.2078,2403.7,2403.2,4.5432]
[1725519956047,3.88969,2404.1,2403.6,0.29123]
[1725519956259,3.88969,2404.1,2403.7,0.7572]
[1725519956260,0.29119,2404.0,2403.7,0.7572]
[1725519956442,0.7355,2404.0,2403.7,3.6372]
[1725519956847,1.02669,2404.0,2403.7,3.6372]
[1725519957344,0.7355,2404.0,2403.7,3.6372]
[1725519957742,1.0267,2404.0,2403.7,0.368]
[1725519958754,1.0267,2404.0,2403.2,0.29128]
[1725519958755,6.0878,2403.8,2403.2,0.29128]
[1725519958949,0.3899,2403.7,2403.5,0.29124]
[1725519959143,0.3899,2403.7,2403.6,0.29124]
[1725519960241,0.3899,2403.7,2403.4,0.7639]
[1725519960444,0.3899,2403.7,2403.4,0.374]
[1725519960952,0.3899,2403.7,2403.4,0.66525]
[1725519961162,0.3899,2403.7,2403.5,0.29125]
[1725519961348,4.5507,2403.7,2403.2,0.3865]
[1725519961653,0.29125,2403.5,2403.2,0.3865]
[1725519961847,0.372,2403.4,2403.2,0.3865]
[1725519962047,0.3592,2403.3,2403.2,0.67779]
[1725519962255,0.3857,2403.6,2403.3,0.29127]
[1725519963059,0.29122,2403.8,2403.4,0.29126]
[1725519963256,1.1267,2403.9,2403.3,3.2694]
[1725519963449,0.29122,2403.8,2403.4,0.29126]
[1725519964557,1.1267,2403.9,2403.3,3.2694]
[1725519964743,0.29122,2403.8,2403.4,0.29126]
[1725519964944,1.41791,2403.9,2403.5,0.29125]
[1725519965153,0.3707,2403.9,2403.5,2.88]
[1725519965455,0.3707,2403.9,2403.8,0.29122]
[1725519965651,0.3707,2403.9,2403.7,0.29122]
[1725519966145,0.3707,2403.9,2403.8,0.29122]
[1725519966350,0.3707,2403.9,2403.7,0.29123]
[1725519966550,0.3707,2403.9,2403.6,0.3791]
[1725519966753,0.3707,2403.9,2403.7,0.29123]
[1725519967142,3.2507,2403.9,2403.6,0.3791]
[1725519967346,2.88,2403.7,2403.1,0.00625261]
[1725519967595,0.29125,2403.5,2403.1,0.00625261]
[1725519967749,0.3565,2403.4,2403.1,0.00625261]
[1725519968651,0.3565,2403.4,2403.1,0.29755261]
[1725519969054,0.3565,2403.4,2403.1,0.00625261]
[1725519970263,0.7657,2403.6,2403.2,0.29128]
[1725519970552,0.7657,2403.6,2403.1,2.88625261]
[1725519970553,0.7657,2403.6,2403.3,0.3558]
[1725519971657,0.3581,2403.7,2403.3,6.4436]
[1725519971855,0.3581,2403.7,2403.5,0.29125]
[1725519972655,0.3581,2403.7,2403.6,0.29124]
[1725519972859,0.7332,2404.0,2403.6,0.29124]
[1725519973056,0.7332,2404.0,2403.7,0.3775]
[1725519973057,0.3932,2403.9,2403.7,0.3775]
[1725519973959,0.3932,2403.9,2403.4,0.36]
[1725519973960,0.68441,2403.9,2403.4,1.02876]
[1725519974264,0.68441,2403.9,2403.4,0.7375]
[1725519974265,0.3932,2403.9,2403.4,0.7375]
[1725519974461,0.3932,2403.9,2403.6,0.29124]
[1725519976265,0.3932,2403.9,2403.7,0.29123]
[1725519976652,0.3932,2403.9,2403.8,0.3664]
[1725519979459,0.29123,2403.8,2403.3,3.49907]
[1725519979667,0.29122,2403.8,2403.2,0.3859]
[1725519979858,0.29123,2403.7,2403.3,0.29127]
[1725519980171,0.29122,2403.8,2403.3,3.17127]
[1725519980569,0.68441,2403.9,2403.4,0.29126]
[1725519980758,0.3932,2403.9,2403.5,0.29124]
[1725519980957,0.6844,2403.9,2403.5,0.29124]
[1725519981164,0.6844,2403.9,2403.6,0.3859]
[1725519982960,0.29122,2403.8,2403.4,0.29126]
[1725519983272,0.29122,2403.8,2403.3,6.37907]
[1725519983564,0.29122,2403.8,2403.4,0.29126]
[1725519984271,0.3932,2403.9,2403.3,3.2078]
[1725519984468,0.29123,2403.7,2403.2,0.65448]
[1725519984668,0.29124,2403.6,2403.2,0.65448]
[1725519984874,0.7283,2403.5,2403.2,0.65448]
[1725519986167,0.7283,2403.5,2403.3,0.85211838]
[1725519986474,0.7283,2403.5,2403.3,0.29128]
[1725519987275,0.7283,2403.5,2403.2,0.65448]